fUST/lending_fUST_20250114
["ID","MTS","AMOUNT","RATE_DAILY","PERIOD"]
[348868582,1736833834392,-500.0,0.00021917,3]
[348868584,1736833834402,-503.37315167,0.00021917,3]
[348868586,1736833834412,-947.22,0.00021917,3]
[348868588,1736833834424,-500.0,0.00021917,3]
[348868590,1736833834434,-500.0,0.00021917,3]
[348868592,1736833834444,-500.0,0.00021917,3]
[348868594,1736833834453,-500.0,0.00021917,3]
[348868596,1736833834463,-500.0,0.00021917,3]
[348868598,1736833834473,-500.0,0.00021917,3]
[348868600,1736833834484,-500.0,0.00021917,3]
[348868602,1736833834494,-503.8369869,0.00021917,3]
[348868604,1736833834504,-500.0,0.00021917,3]
[348868606,1736833834513,-501.84825704,0.00021917,3]
[348868608,1736833834523,-503.6876415,0.00021917,3]
[348868610,1736833834533,-500.0,0.00021917,3]
[348868612,1736833834544,-151.0,0.00021917,2]
[348868615,1736833834555,-151.0,0.00021917,2]
[348868617,1736833834564,-151.0,0.00021917,2]
[348868619,1736833834574,-151.0,0.00021917,2]
[348868620,1736833834583,-503.67798636,0.00021917,3]
[348868622,1736833834592,-151.0,0.00021917,2]
[348868625,1736833834602,-151.0,0.00021917,2]
[348868627,1736833834612,-209.3396962,0.00021917,2]
[348868629,1736833834622,-578.76705136,0.00021917,3]
[348868631,1736833834631,-500.0,0.00021917,3]
[348868633,1736833834640,-500.0,0.00021917,3]
[348868635,1736833834650,-500.0,0.00021917,3]
[348868637,1736833834659,-500.0,0.00021917,3]
[348868639,1736833834668,-500.0,0.00021917,3]
[348868641,1736833834678,-420.78780233,0.00021917,3]
[348868643,1736833834687,-500.0,0.00021917,3]
[348868645,1736833834695,-500.0,0.00021917,3]
[348868647,1736833834705,-500.0,0.00021917,3]
[348868649,1736833834714,-500.0,0.00021917,3]
[348868651,1736833834723,-500.0,0.00021917,3]
[348868653,1736833834732,-500.0,0.00021917,3]
[348868655,1736833834741,-500.0,0.00021917,3]
[348868657,1736833834751,-502.85306545,0.00021917,3]
[348868659,1736833834760,-500.0,0.00021917,3]
[348868661,1736833834770,-500.0,0.00021917,3]
[348868663,1736833834779,-500.0,0.00021917,3]
[348868665,1736833834789,-500.0,0.00021917,3]
[348868667,1736833834799,-500.0,0.00021917,3]
[348868669,1736833834808,-500.0,0.00021917,3]
[348868671,1736833834817,-500.0,0.00021917,3]
[348868673,1736833834827,-500.0,0.00021917,3]
[348868675,1736833834836,-500.0,0.00021917,3]
[348868677,1736833834846,-501.86820625,0.00021917,3]
[348868679,1736833834855,-504.62633602,0.00021917,3]
[348868681,1736833834865,-500.0,0.00021917,3]
[348868683,1736833834875,-500.0,0.00021917,3]
[348868685,1736833834884,-500.0,0.00021917,3]
[348868687,1736833834893,-500.0,0.00021917,3]
[348868689,1736833834903,-500.0,0.00021917,3]
[348868691,1736833834913,-500.0,0.00021917,3]
[348868693,1736833834922,-500.0,0.00021917,3]
[348868695,1736833834932,-500.0,0.00021917,3]
[348868697,1736833834942,-500.45686898,0.00021917,3]
[348868699,1736833834951,-501.33782958,0.00021917,3]
[348868701,1736833834960,-500.0,0.00021917,3]
[348868703,1736833834970,-505.1589007,0.00021917,3]
[348868705,1736833834979,-500.0,0.00021917,3]
[348868707,1736833834988,-500.0,0.00021917,3]
[348868709,1736833834998,-500.0,0.00021917,3]
[348868711,1736833835007,-502.71384845,0.00021917,3]
[348868713,1736833835017,-500.0,0.00021917,3]
[348868715,1736833835031,-500.0,0.00021917,3]
[348868717,1736833835041,-500.0,0.00021917,3]
[348868720,1736833835051,-500.0,0.00021917,3]
[348868722,1736833835061,-505.94661776,0.00021917,3]
[348868724,1736833835070,-500.0,0.00021917,3]
[348868726,1736833835079,-501.77235838,0.00021917,3]
[348868728,1736833835089,-500.0,0.00021917,3]
[348868730,1736833835098,-500.0,0.00021917,3]
[348868732,1736833835108,-501.85530408,0.00021917,3]
[348868734,1736833835117,-505.29284544,0.00021917,3]
[348868736,1736833835126,-504.0686359,0.00021917,3]
[348868738,1736833835136,-500.0,0.00021917,3]
[348868740,1736833835145,-500.56,0.00021917,3]
[348868742,1736833835154,-500.0,0.00021917,3]
[348868744,1736833835165,-500.93264614,0.00021917,3]
[348868746,1736833835175,-595.26458609,0.00021917,3]
[348868748,1736833835184,-500.0,0.00021917,3]
[348868750,1736833835195,-502.87804873,0.00021917,3]
[348868752,1736833835204,-500.7816008,0.00021917,3]
[348868754,1736833835214,-996.68,0.00021917,3]
[348868756,1736833835223,-500.0,0.00021917,3]
[348868758,1736833835232,-500.0,0.00021917,3]
[348868760,1736833835243,-500.0,0.00021917,3]
[348868762,1736833835251,-500.0,0.00021917,3]
[348868764,1736833835262,-500.0,0.00021917,3]
[348868766,1736833835273,-505.09883551,0.00021917,3]
[348868768,1736833835282,-500.95298409,0.00021917,3]
[348868770,1736833835292,-500.0,0.00021917,3]
[348868772,1736833835301,-500.0,0.00021917,3]
[348868774,1736833835311,-500.75834169,0.00021917,3]
[348868776,1736833835320,-500.0,0.00021917,3]
[348868778,1736833835329,-500.0,0.00021917,3]
[348868780,1736833835339,-500.0,0.00021917,3]
[348868782,1736833835348,-500.0,0.00021917,3]
[348868784,1736833835358,-500.0,0.00021917,3]
[348868786,1736833835367,-500.0,0.00021917,3]
[348868788,1736833835376,-500.0,0.00021917,3]
[348868790,1736833835386,-500.0,0.00021917,3]
[348868792,1736833835395,-500.0,0.00021917,3]
[348868794,1736833835404,-500.0,0.00021917,3]
[348868796,1736833835414,-501.40871518,0.00021917,3]
[348868798,1736833835424,-500.0,0.00021917,3]
[348868800,1736833835433,-500.0,0.00021917,3]
[348868802,1736833835443,-500.0,0.00021917,3]
[348868803,1736833835452,-502.23669502,0.00021917,3]
[348868805,1736833835462,-500.88602919,0.00021917,3]
[348868806,1736833835471,-798.93,0.00021917,3]
[348868807,1736833835481,-500.0,0.00021917,3]
[348868808,1736833835490,-500.0,0.00021917,3]
[348868809,1736833835499,-505.56368674,0.00021917,3]
[348868810,1736833835510,-501.65699006,0.00021917,3]
[348868811,1736833835519,-500.0,0.00021917,3]
[348868812,1736833835529,-500.0,0.00021917,3]
[348868813,1736833835540,-500.0,0.00021917,3]
[348868814,1736833835549,-500.0,0.00021917,3]
[348868815,1736833835559,-500.0,0.00021917,3]
[348868816,1736833835568,-504.62823969,0.00021917,3]
[348868817,1736833835578,-500.0,0.00021917,3]
[348868818,1736833835588,-500.0,0.00021917,3]
[348868819,1736833835597,-500.0,0.00021917,3]
[348868820,1736833835607,-500.0,0.00021917,3]
[348868821,1736833835616,-500.0,0.00021917,3]
[348868822,1736833835626,-500.0,0.00021917,3]
[348868823,1736833835635,-500.0,0.00021917,3]
[348868824,1736833835645,-502.06313836,0.00021917,3]
[348868825,1736833835655,-500.0,0.00021917,3]
[348868826,1736833835665,-500.0,0.00021917,3]
[348868827,1736833835674,-500.0,0.00021917,3]
[348868828,1736833835684,-502.51012622,0.00021917,3]
[348868829,1736833835693,-500.0,0.00021917,3]
[348868830,1736833835703,-500.0,0.00021917,3]
[348868831,1736833835713,-268.35913366,0.00021917,3]
[348868832,1736833835722,-500.0,0.00021917,3]
[348868833,1736833835732,-501.76002226,0.00021917,3]
[348868834,1736833835742,-500.0,0.00021917,3]
[348868835,1736833835752,-10527.36012331,0.00021917,3]
[348868836,1736833837331,20471.14900207,0.00025,120]
[348868856,1736833838724,-989.39108475,0.00021917,3]
[348868857,1736833838737,-1097.32879194,0.00021917,3]
[348868858,1736833838748,-118.77916461,0.00021917,3]
[348868859,1736833838760,-384.09125446,0.00021917,3]
[348868860,1736833838770,-500.0,0.00021917,3]
[348868861,1736833838779,-760.07,0.00021917,3]
[348868862,1736833838789,-500.0,0.00021917,3]
[348868863,1736833838803,-502.45369699,0.00021917,3]
[348868864,1736833838812,-524.89370662,0.00021917,3]
[348868865,1736833838821,-503.83651842,0.00021917,3]
[348868866,1736833838832,-500.0,0.00021917,3]
[348868867,1736833838842,-500.0,0.00021917,3]
[348868868,1736833838852,-345.08401252,0.00021917,3]
[348868869,1736833838865,-200.52993933,0.00021917,3]
[348868870,1736833838874,-500.0,0.00021917,3]
[348868871,1736833838884,-500.0,0.00021917,3]
[348868872,1736833838895,-503.62467708,0.00021917,3]
[348868873,1736833838904,-500.0,0.00021917,3]
[348868874,1736833838914,-500.0,0.00021917,3]
[348868875,1736833838924,-501.54124812,0.00021917,3]
[348868876,1736833838933,-300.0,0.00021917,3]
[348868877,1736833838943,-500.8267458,0.00021917,3]
[348868878,1736833838954,-500.0,0.00021917,3]
[348868879,1736833838963,-505.29137053,0.00021917,3]
[348868880,1736833838974,-500.0,0.00021917,3]
[348868881,1736833838984,-500.0,0.00021917,3]
[348868882,1736833838993,-500.0,0.00021917,3]
[348868883,1736833839003,-151.0,0.00021917,2]
[348868884,1736833839012,-171.299005,0.00021917,2]
[348868885,1736833839023,-1010.49,0.00021917,3]
[348868886,1736833839035,-679.77,0.00021917,3]
[348868887,1736833839049,-500.0,0.00021917,3]
[348868888,1736833839058,-500.0,0.00021917,3]
[348868889,1736833839068,-500.0,0.00021917,3]
[348868890,1736833839078,-500.0,0.00021917,3]
[348868891,1736833839088,-500.0,0.00021917,3]
[348868892,1736833839098,-500.0,0.00021917,3]
[348868893,1736833839108,-502.57349194,0.00021917,3]
[348868894,1736833839117,-945.34,0.00021917,3]
[348868895,1736833839127,-500.0,0.00021917,3]
[348868896,1736833839137,-500.0,0.00021917,3]
[348868897,1736833839147,-500.0,0.00021917,3]
[348868898,1736833839157,-501.08855486,0.00021917,3]
[348868899,1736833839167,-500.0,0.00021917,3]
[348868900,1736833839177,-503.11181298,0.00021917,3]
[348868901,1736833839186,-500.0,0.00021917,3]
[348868902,1736833839197,-500.0,0.00021917,3]
[348868903,1736833839207,-936.12,0.00021917,3]
[348868904,1736833839217,-504.83996186,0.00021917,3]
[348868905,1736833839227,-500.0,0.00021917,3]
[348868906,1736833839236,-502.32000164,0.00021917,3]
[348868907,1736833839246,-181.58423242,0.00021917,3]
[348868908,1736833839260,-318.41576758,0.00021917,3]
[348868909,1736833839271,-500.0,0.00021917,3]
[348868910,1736833839280,-500.0,0.00021917,3]
[348868911,1736833839289,-500.0,0.00021917,3]
[348868912,1736833839302,-503.12086118,0.00021917,3]
[348868913,1736833839311,-500.0,0.00021917,3]
[348868914,1736833839321,-500.0,0.00021917,3]
[348868915,1736833839330,-475.36548111,0.00021917,3]
[348868916,1736833839340,-500.0,0.00021917,3]
[348868917,1736833839350,-500.0,0.00021917,3]
[348868918,1736833839359,-150.6152531,0.00021917,2]
[348868919,1736833839369,-1110.34,0.00021917,3]
[348868920,1736833839378,-500.98346123,0.00021917,3]
[348868921,1736833839388,-500.0,0.00021917,3]
[348868922,1736833839397,-500.0,0.00021917,3]
[348868923,1736833839406,-500.0,0.00021917,3]
[348868924,1736833839416,-500.0,0.00021917,3]
[348868925,1736833839425,-505.87113858,0.00021917,3]
[348868926,1736833839435,-500.0,0.00021917,3]
[348868927,1736833839444,-500.0,0.00021917,3]
[348868928,1736833839455,-500.0,0.00021917,3]
[348868929,1736833839465,-500.0,0.00021917,3]
[348868930,1736833839475,-500.0,0.00021917,3]
[348868931,1736833839484,-151.0,0.00021917,2]
[348868932,1736833839494,-151.0,0.00021917,2]
[348868933,1736833839504,-151.0,0.00021917,2]
[348868934,1736833839513,-418.79832119,0.00021917,3]
[348868935,1736833839526,-81.20167881,0.00021917,3]
[348868936,1736833839535,-151.0,0.00021917,2]
[348868937,1736833839547,-69.79832119,0.00021917,2]
[348868938,1736833839559,-81.20167881,0.00021917,2]
[348868939,1736833839568,-151.0,0.00021917,2]
[348868940,1736833839578,-151.0,0.00021917,2]
[348868941,1736833839588,-151.0,0.00021917,2]
[348868942,1736833839598,-500.0,0.00021917,3]
[348868943,1736833839607,-500.0,0.00021917,3]
[348868944,1736833839617,-151.0,0.00021917,2]
[348868945,1736833839627,-151.0,0.00021917,2]
[348868946,1736833839637,-151.0,0.00021917,2]
[348868947,1736833839646,-151.0,0.00021917,2]
[348868948,1736833839656,-500.0,0.00021917,3]
[348868949,1736833839665,-500.0,0.00021917,3]
[348868950,1736833839674,-151.0,0.00021917,2]
[348868951,1736833839684,-151.0,0.00021917,2]
[348868952,1736833839693,-151.0,0.00021917,2]
[348868953,1736833839704,-151.0,0.00021917,2]
[348868954,1736833839713,-500.0,0.00021917,3]
[348868955,1736833839723,-500.0,0.00021917,3]
[348868956,1736833839732,-151.0,0.00021917,2]
[348868957,1736833839742,-500.0,0.00021917,3]
[348868958,1736833839753,-500.0,0.00021917,3]
[348868959,1736833839763,-500.0,0.00021917,3]
[348868960,1736833839772,-260.075084,0.00021917,2]
[348868961,1736833839782,-500.0,0.00021917,3]
[348868962,1736833839793,-500.0,0.00021917,3]
[348868963,1736833839804,-500.0,0.00021917,3]
[348868964,1736833839813,-500.0,0.00021917,3]
[348868965,1736833839823,-500.0,0.00021917,3]
[348868966,1736833839833,-500.0,0.00021917,3]
[348868967,1736833839842,-729.95,0.00021917,3]
[348868968,1736833839852,-500.0,0.00021917,3]
[348868969,1736833839862,-529.13303381,0.00021917,3]
[348868970,1736833839872,-500.0,0.00021917,3]
[348868971,1736833839882,-504.7417729,0.00021917,3]
[348868972,1736833839892,-1053.7,0.00021917,3]
[348868973,1736833839901,-74.2298209,0.00021917,3]
[348868974,1736833839915,-427.48749143,0.00021917,3]
[348868975,1736833839927,-500.0,0.00021917,3]
[348868976,1736833839937,-765.38,0.00021917,3]
[348868977,1736833839947,-622.73,0.00021917,3]
[348868978,1736833839958,-849.88,0.00021917,3]
[348868979,1736833839968,-500.0,0.00021917,3]
[348868980,1736833839978,-503.43426659,0.00021917,3]
[348868981,1736833839988,-500.0,0.00021917,3]
[348868982,1736833839998,-500.0,0.00021917,3]
[348868983,1736833840008,-500.0,0.00021917,3]
[348868984,1736833840017,-500.0,0.00021917,3]
[348868985,1736833840030,-502.28496443,0.00021917,3]
[348868986,1736833840039,-500.0,0.00021917,3]
[348868988,1736833840052,-559.07,0.00021917,3]
[348868989,1736833840061,-500.0,0.00021917,3]
[348868990,1736833840073,-505.26273535,0.00021917,3]
[348868991,1736833840083,-516.09424831,0.00021917,3]
[348868992,1736833840093,-500.0,0.00021917,3]
[348868993,1736833840105,-501.44526902,0.00021917,3]
[348868994,1736833840115,-500.0,0.00021917,3]
[348868995,1736833840126,-500.0,0.00021917,3]
[348868996,1736833840135,-500.0,0.00021917,3]
[348868997,1736833840145,-501.62749766,0.00021917,3]
[348868998,1736833840155,-500.0,0.00021917,3]
[348868999,1736833840165,-501.72665247,0.00021917,3]
[348869000,1736833840175,-502.93553247,0.00021917,3]
[348869001,1736833840184,-500.0,0.00021917,3]
[348869002,1736833840196,-500.0,0.00021917,3]
[348869003,1736833840207,-1202.97,0.00021917,3]
[348869004,1736833840216,-503.1390303,0.00021917,3]
[348869006,1736833840226,-500.0,0.00021917,3]
[348869007,1736833840235,-3241.73611782,0.00021917,3]
[348869013,1736833840785,-1372.34388218,0.00021917,3]
[348869014,1736833840794,-500.0,0.00021917,3]
[348869015,1736833840804,-500.0,0.00021917,3]
[348869016,1736833840814,-569.47476297,0.00021917,3]
[348869017,1736833840823,-500.0,0.00021917,3]
[348869018,1736833840833,-500.0,0.00021917,3]
[348869019,1736833840843,-500.0,0.00021917,3]
[348869020,1736833840852,-611.33,0.00021917,3]
[348869021,1736833840862,-500.0,0.00021917,3]
[348869022,1736833840871,-500.0,0.00021917,3]
[348869023,1736833840880,-502.35369743,0.00021917,3]
[348869024,1736833840890,-500.0,0.00021917,3]
[348869025,1736833840899,-500.0,0.00021917,3]
[348869027,1736833840909,-500.0,0.00021917,3]
[348869029,1736833840919,-500.0,0.00021917,3]
[348869030,1736833841089,-501.84769349,0.00021917,3]
[348869031,1736833841100,-500.0,0.00021917,3]
[348869032,1736833841110,-500.0,0.00021917,3]
[348869033,1736833841120,-500.0,0.00021917,3]
[348869034,1736833841130,-500.0,0.00021917,3]
[348869035,1736833841139,-500.0,0.00021917,3]
[348869036,1736833841149,-508.78752414,0.00021917,3]
[348869037,1736833841159,-865.37,0.00021917,3]
[348869038,1736833841169,-500.0,0.00021917,3]
[348869039,1736833841179,-500.0,0.00021917,3]
[348869040,1736833841189,-544.0885629,0.00021917,3]
[348869041,1736833841199,-864.23,0.00021917,3]
[348869042,1736833841208,-1346.04,0.00021917,3]
[348869043,1736833841218,-500.0,0.00021917,3]
[348869044,1736833841228,-500.0,0.00021917,3]
[348869045,1736833841237,-500.91120885,0.00021917,3]
[348869046,1736833841246,-502.60844626,0.00021917,3]
[348869047,1736833841256,-745.69,0.00021917,3]
[348869048,1736833841265,-500.0,0.00021917,3]
[348869049,1736833841274,-500.0,0.00021917,3]
[348869050,1736833841284,-501.455749,0.00021917,3]
[348869051,1736833841298,-500.0,0.00021917,3]
[348869052,1736833841307,-500.0,0.00021917,3]
[348869053,1736833841317,-500.0,0.00021917,3]
[348869054,1736833841326,-500.52887677,0.00021917,3]
[348869055,1736833841335,-500.0,0.00021917,3]
[348869056,1736833841344,-506.97639185,0.00021917,3]
[348869057,1736833841354,-500.0,0.00021917,3]
[348869058,1736833841364,-500.0,0.00021917,3]
[348869059,1736833841373,-1000.0,0.00021917,3]
[348869060,1736833841382,-500.0,0.00021917,3]
[348869061,1736833841392,-500.0,0.00021917,3]
[348869062,1736833841402,-500.0,0.00021917,3]
[348869063,1736833841411,-500.0,0.00021917,3]
[348869064,1736833841421,-500.0,0.00021917,3]
[348869065,1736833841430,-500.0,0.00021917,3]
[348869066,1736833841439,-500.0,0.00021917,3]
[348869067,1736833841448,-500.0,0.00021917,3]
[348869068,1736833841458,-500.0,0.00021917,3]
[348869069,1736833841467,-500.0,0.00021917,3]
[348869070,1736833841477,-5659.16,0.00021917,3]
[348869071,1736833841486,-627.17,0.00021917,3]
[348869072,1736833841495,-500.0,0.00021917,3]
[348869073,1736833841504,-500.0,0.00021917,3]
[348869074,1736833841513,-500.0,0.00021917,3]
[348869075,1736833841522,-500.0,0.00021917,3]
[348869076,1736833841532,-502.96671062,0.00021917,3]
[348869077,1736833841541,-500.0,0.00021917,3]
[348869078,1736833841552,-502.52923895,0.00021917,3]
[348869079,1736833841561,-500.0,0.00021917,3]
[348869080,1736833841570,-500.0,0.00021917,3]
[348869081,1736833841579,-500.0,0.00021917,3]
[348869082,1736833841588,-500.0,0.00021917,3]
[348869083,1736833841598,-500.0,0.00021917,3]
[348869084,1736833841607,-503.67858,0.00021917,3]
[348869085,1736833841616,-500.0,0.00021917,3]
[348869086,1736833841625,-500.0,0.00021917,3]
[348869087,1736833841635,-500.0,0.00021917,3]
[348869088,1736833841644,-500.0,0.00021917,3]
[348869089,1736833841653,-500.0,0.00021917,3]
[348869090,1736833841663,-532.5178752,0.00021917,3]
[348869091,1736833841672,-500.0,0.00021917,3]
[348869092,1736833841682,-501.19044874,0.00021917,3]
[348869093,1736833841691,-500.0,0.00021917,3]
[348869094,1736833841700,-525.64511282,0.00021917,3]
[348869095,1736833841709,-500.0,0.00021917,3]
[348869096,1736833841719,-502.68532334,0.00021917,3]
[348869097,1736833841728,-500.0,0.00021917,3]
[348869098,1736833841737,-500.0,0.00021917,3]
[348869099,1736833841747,-500.0,0.00021917,3]
[348869100,1736833841756,-500.0,0.00021917,3]
[348869101,1736833841765,-500.0,0.00021917,3]
[348869102,1736833841775,-507.64799622,0.00021917,3]
[348869103,1736833841784,-500.0,0.00021917,3]
[348869104,1736833841794,-500.0,0.00021917,3]
[348869105,1736833841803,-500.0,0.00021917,3]
[348869106,1736833841812,-505.10672022,0.00021917,3]
[348869107,1736833841823,-500.0,0.00021917,3]
[348869108,1736833841832,-330.68164176,0.00021917,3]
[348869109,1736833841841,-502.63739952,0.00021917,3]
[348869110,1736833841851,-500.0,0.00021917,3]
[348869111,1736833841860,-500.0,0.00021917,3]
[348869112,1736833841869,-528.51,0.00021917,3]
[348869113,1736833841879,-500.0,0.00021917,3]
[348869114,1736833841889,-500.0,0.00021917,3]
[348869115,1736833841899,-504.05386802,0.00021917,2]
[348869116,1736833841908,-500.0,0.00021917,3]
[348869117,1736833841919,-245.30642438,0.00021917,3]
[348869118,1736833841928,-500.0,0.00021917,3]
[348869119,1736833841937,-500.0,0.00021917,3]
[348869120,1736833841947,-500.0,0.00021917,3]
[348869121,1736833841956,-504.51081287,0.00021917,3]
[348869122,1736833841966,-500.0,0.00021917,2]
[348869123,1736833841975,-150.23,0.00021917,2]
[348869124,1736833841985,-581.85,0.00021917,3]
[348869125,1736833841995,-1008.78,0.00021917,3]
[348869126,1736833842006,-505.09738055,0.00021917,3]
[348869127,1736833842015,-200.59696468,0.00021917,2]
[348869128,1736833842027,-150.23,0.00021917,2]
[348869129,1736833842037,-527.95965567,0.00021917,3]
[348869130,1736833842047,-239.07925738,0.00021917,3]
[348869131,1736833842057,-500.0,0.00021917,3]
[348869132,1736833842068,-913.08,0.00021917,3]
[348869133,1736833842077,-500.0,0.00021917,3]
[348869134,1736833842086,-500.0,0.00021917,3]
[348869135,1736833842096,-521.16689846,0.00021917,3]
[348869136,1736833842106,-500.0,0.00021917,3]
[348869137,1736833842116,-500.0,0.00021917,3]
[348869138,1736833842125,-500.0,0.00021917,3]
[348869139,1736833842135,-483.74667149,0.00021917,3]
[348869140,1736833842144,-500.0,0.00021917,3]
[348869141,1736833842154,-500.0,0.00021917,3]
[348869142,1736833842163,-500.0,0.00021917,3]
[348869143,1736833842172,-502.97846137,0.00021917,3]
[348869144,1736833842182,-500.0,0.00021917,3]
[348869145,1736833842192,-500.0,0.00021917,3]
[348869146,1736833842204,-500.0,0.00021917,3]
[348869147,1736833842213,-500.0,0.00021917,3]
[348869148,1736833842223,-501.69645912,0.00021917,3]
[348869149,1736833842232,-500.0,0.00021917,3]
[348869150,1736833842242,-614.209539,0.00021917,2]
[348869151,1736833842251,-500.0,0.00021917,3]
[348869152,1736833842261,-614.209539,0.00021917,2]
[348869153,1736833842273,-1039.09,0.00021917,3]
[348869154,1736833842282,-614.209539,0.00021917,2]
[348869155,1736833842292,-500.0,0.00021917,3]
[348869156,1736833842302,-614.209539,0.00021917,2]
[348869157,1736833842312,-500.0,0.00021917,3]
[348869158,1736833842321,-614.209539,0.00021917,2]
[348869159,1736833842330,-500.0,0.00021917,3]
[348869160,1736833842339,-614.209539,0.00021917,2]
[348869161,1736833842349,-500.0,0.00021917,3]
[348869162,1736833842358,-500.0,0.00021917,3]
[348869163,1736833842368,-614.209539,0.00021917,2]
[348869164,1736833842379,-500.0,0.00021917,3]
[348869165,1736833842388,-614.209539,0.00021917,2]
[348869166,1736833842398,-500.0,0.00021917,3]
[348869167,1736833842407,-509.85600307,0.00021917,3]
[348869168,1736833842416,-614.209539,0.00021917,2]
[348869169,1736833842425,-500.0,0.00021917,3]
[348869170,1736833842435,-614.209539,0.00021917,2]
[348869171,1736833842444,-427.61086415,0.00021917,3]
[348869172,1736833842454,-614.209539,0.00021917,2]
[348869173,1736833842464,-614.209539,0.00021917,2]
[348869174,1736833842473,-614.209539,0.00021917,2]
[348869175,1736833842483,-614.209539,0.00021917,2]
[348869176,1736833842492,-500.0,0.00021917,3]
[348869177,1736833842502,-614.209539,0.00021917,2]
[348869178,1736833842511,-505.02057534,0.00021917,3]
[348869179,1736833842521,-614.209539,0.00021917,2]
[348869180,1736833842530,-614.209539,0.00021917,2]
[348869181,1736833842540,-614.209539,0.00021917,2]
[348869182,1736833842553,-500.0,0.00021917,3]
[348869183,1736833842562,-500.0,0.00021917,3]
[348869184,1736833842572,-500.0,0.00021917,3]
[348869185,1736833842582,-614.209539,0.00021917,2]
[348869186,1736833842591,-500.0,0.00021917,3]
[348869187,1736833842601,-500.0,0.00021917,3]
[348869188,1736833842610,-614.209541,0.00021917,2]
[348869189,1736833842619,-534.74317706,0.00021917,3]
[348869190,1736833842629,-500.0,0.00021917,3]
[348869191,1736833842638,-500.0,0.00021917,3]
[348869192,1736833842648,-500.0,0.00021917,3]
[348869193,1736833842657,-200.0,0.00021917,3]
[348869194,1736833842667,-500.0,0.00021917,3]
[348869195,1736833842676,-500.0,0.00021917,3]
[348869196,1736833842686,-499.93448225,0.00021917,3]
[348869197,1736833842695,-500.0,0.00021917,3]
[348869198,1736833842705,-171.47524805,0.00021917,3]
[348869199,1736833842715,-500.0,0.00021917,3]
[348869200,1736833842724,-500.0,0.00021917,3]
[348869201,1736833842734,-507.05609774,0.00021917,3]
[348869202,1736833842743,-500.0,0.00021917,3]
[348869203,1736833842752,-500.67974322,0.00021917,3]
[348869204,1736833842762,-500.0,0.00021917,3]
[348869205,1736833842771,-524.66660431,0.00021917,3]
[348869206,1736833842780,-854.54,0.00021917,3]
[348869207,1736833842790,-505.15327283,0.00021917,3]
[348869208,1736833842800,-504.98051351,0.00021917,3]
[348869209,1736833842810,-501.16090787,0.00021917,3]
[348869210,1736833842819,-534.303689,0.00021917,3]
[348869211,1736833842829,-500.0,0.00021917,3]
[348869212,1736833842838,-500.0,0.00021917,3]
[348869213,1736833842848,-502.41281598,0.00021917,3]
[348869214,1736833842858,-500.0,0.00021917,3]
[348869215,1736833842868,-500.0,0.00021917,3]
[348869216,1736833842878,-500.0,0.00021917,3]
[348869217,1736833842888,-500.0,0.00021917,3]
[348869218,1736833842898,-500.0,0.00021917,3]
[348869219,1736833842907,-500.0,0.00021917,3]
[348869220,1736833842917,-500.0,0.00021917,3]
[348869221,1736833842926,-500.0,0.00021917,3]